[Event "Fagernes Open 2021"]
[Site "Fagernes"]
[Date "2021.10.11"]
[Round "2.11"]
[White "Johannessen, Theo N"]
[Black "Amundsen, Ask"]
[Result "1/2-1/2"]
[ECO "A70"]
[WhiteElo "1668"]
[BlackElo "1816"]
[Annotator "NA"]
[PlyCount "136"]
[EventDate "2021.10.10"]
[EventCountry "NOR"]
[SourceTitle "playchess.com"]
[Source "ChessBase"]
[SourceQuality "1"]
[TimeControl "40/5400+30:1800+30"]

1. d4 {[%emt 0:00:00]} Nf6 {[%emt 0:00:00]} 2. c4 {[%emt 0:00:00]} c5 {[%emt 0:00:00]} 3. d5 {[%emt 0:00:00]} e6 {[%emt 0:00:00]} 4. Nc3 {[%emt 0:00:00]} exd5 {[%emt 0:00:00]} 5. cxd5 {[%emt 0:00:00]} d6 {[%emt 0:00:00]} 6. Nf3 {[%emt 0:00:19]} g6 {[%emt 0:00:00]} 7. h3 {[%emt 0:06:33]} Bg7 {[%emt 0:00:00]} 8. e4 {[%emt 0:03:15]} O-O {[%emt 0:00:00]} 9. Bd3 {[%emt 0:01:56]} Ne8 {[%emt 0:01:22]} 10. Bf4 {[%emt 0:10:35]} Na6 {[%emt 0:07:54]} 11. Bxa6 {[%emt 0:07:09]} bxa6 {[%emt 0:02:09]} 12. O-O {[%emt 0:01:00]} Rb8 {[%emt 0:05:23]} 13. Qd2 {[%emt 0:05:51]} Qb6 {[%emt 0:12:46]} 14. Rab1 {[%emt 0:03:28]} f6 {[%emt 0:03:20]} 15. Rfe1 {[%emt 0:11:10]} Bd7 {[%emt 0:02:16]} 16. Qc2 {[%emt 0:01:36]} Rf7 {[%emt 0:19:45]} 17. Nd2 {[%emt 0:02:10]} Bb5 {[%emt 0:04:13]} 18. a4 {[%emt 0:01:09]} Bd7 {[%emt 0:00:12]} 19. Nc4 {[%emt 0:00:46]} Qc7 {[%emt 0:00:24]} 20. Nd1 {[%emt 0:05:04]} Rb4 {[%emt 0:06:51]} 21. b3 {[%emt 0:00:57]} f5 {[%emt 0:05:00]} 22. e5 {[%emt 0:10:18]} dxe5 {[%emt 0:01:15]} 23. Bxe5 {[%emt 0:06:20]} Rxc4 {[%emt 0:05:54]} 24. Qxc4 {[%emt 0:01:08]} Bxe5 {[%emt 0:00:24]} 25. Qxa6 {[%emt 0:00:44]} Nf6 {[%emt 0:02:22]} 26. Ne3 {[%emt 0:00:41]} Ne4 {[%emt 0:02:27]} 27. Rbc1 {[%emt 0:03:47]} Bh2+ {[%emt 0:03:10]} 28. Kf1 {[%emt 0:00:16]} f4 {[%emt 0:03:08]} 29. Ng4 {[%emt 0:02:16]} Nd2+ {[%emt 0:04:08]} 30. Ke2 {[%emt 0:00:08]} f3+ {[%emt 0:01:17]} 31. Kxd2 {[%emt 0:00:53]} Bxg4 {[%emt 0:00:53]} 32. hxg4 {[%emt 0:01:27]} Qf4+ {[%emt 0:01:16]} 33. Kc2 {[%emt 0:01:46]} fxg2 {[%emt 0:00:54]} 34. Qe2 {[%emt 0:02:06]} c4 {[%emt 0:06:18]} 35. bxc4 {[%emt 0:01:50]} Rc7 {[%emt 0:00:59]} 36. Kb3 {[%emt 0:03:43]} Qd6 {[%emt 0:00:48]} 37. Qe6+ {[%emt 0:00:26]} Qxe6 {[%emt 0:00:54]} 38. dxe6 {[%emt 0:00:10]} Kf8 {[%emt 0:00:59]} 39. Rg1 {[%emt 0:00:38]} Bxg1 {[%emt 0:00:20]} 40. Rxg1 {[%emt 0:00:12]} Ke7 {[%emt 0:00:19]} 41. Rxg2 {[%emt 0:30:10]} Kxe6 {[%emt 0:30:14]} 42. f4 {[%emt 0:03:42]} Rf7 {[%emt 0:00:00]} 43. Re2+ {[%emt 0:00:00]} Kd6 {[%emt 0:00:00]} 44. Re4 {[%emt 0:00:00]} a5 {[%emt 0:00:00]} 45. Kc3 {[%emt 0:00:00]} h5 {[%emt 0:00:00]} 46. gxh5 {[%emt 0:00:00]} gxh5 {[%emt 0:00:00] [#]} 47. Re5 $1 {[%emt 0:00:00]} Rh7 {[%emt 0:00:00]} 48. Kd4 {[%emt 0:00:00]} h4 $16 {[%emt 0:00:00]} 49. c5+ {[%emt 0:00:00]} Kc6 {[%emt 0:00:00]} 50. Re6+ {[%emt 0:00:00]} Kc7 {[%emt 0:00:00]} 51. Re2 {[%emt 0:00:00]} h3 {[%emt 0:00:00]} 52. Rh2 {[%emt 0:00:00]} Kc6 {[%emt 0:00:00]} 53. f5 {[%emt 0:00:00]} Rh4+ {[%emt 0:00:00]} 54. Ke5 {[%emt 0:00:00]} Kxc5 {[%emt 0:01:59]} 55. f6 {[%emt 0:00:00]} Rh8 {[%emt 0:05:54]} 56. f7 {[%emt 0:00:00]} Rf8 {[%emt 0:00:16]} 57. Ke6 {[%emt 0:00:00]} Kb4 {[%emt 0:00:14]} 58. Ke7 {[%emt 0:00:00]} Rc8 {[%emt 0:00:52]} 59. Rxh3 {[%emt 0:00:22]} Kxa4 {[%emt 0:00:25]} 60. f8=Q {[%emt 0:07:11]} Rxf8 {[%emt 0:00:05]} 61. Kxf8 {[%emt 0:00:17]} Kb4 {[%emt 0:00:07]} 62. Ke7 {[%emt 0:00:43]} a4 {[%emt 0:00:12]} 63. Kd6 {[%emt 0:00:41]} a3 {[%emt 0:00:10]} 64. Kd5 {[%emt 0:00:35]} a2 {[%emt 0:00:14]} 65. Rh1 {[%emt 0:00:10]} Kb3 {[%emt 0:00:05]} 66. Kd4 {[%emt 0:00:27]} Kb2 {[%emt 0:00:12]} 67. Rh2+ {[%emt 0:00:30]} Kb1 {[%emt 0:00:10]} 68. Rxa2 {[%emt 0:00:35]} Kxa2 {[%emt 0:00:03]} 1/2-1/2

[Event "Fagernes Open 2021"]
[Site "Fagernes"]
[Date "2021.10.11"]
[Round "2.12"]
[White "Sekkingstad, Thomas"]
[Black "Myagmarsuren, Evsuld"]
[Result "1/2-1/2"]
[ECO "D10"]
[WhiteElo "1812"]
[BlackElo "1650"]
[Annotator "NA"]
[PlyCount "101"]
[EventDate "2021.10.10"]
[EventCountry "NOR"]
[SourceTitle "playchess.com"]
[Source "ChessBase"]
[SourceQuality "1"]
[TimeControl "40/5400+30:1800+30"]

1. d4 {[%emt 0:00:00]} d5 {[%emt 0:00:00]} 2. c4 {[%emt 0:00:00]} c6 {[%emt 0:00:00]} 3. cxd5 {[%emt 0:00:00]} cxd5 {[%emt 0:00:00]} 4. Nf3 {[%emt 0:00:00]} Nc6 {[%emt 0:00:00]} 5. Nc3 {[%emt 0:00:00]} Bf5 {[%emt 0:00:00]} 6. Qb3 {[%emt 0:00:00]} Qd7 {[%emt 0:00:00]} 7. Bf4 {[%emt 0:16:10]} e6 {[%emt 0:04:55]} 8. e3 {[%emt 0:02:41]} Bb4 {[%emt 0:09:08]} 9. Bb5 {[%emt 0:01:35]} f6 {[%emt 0:01:22]} 10. O-O {[%emt 0:06:00]} Bxc3 {[%emt 0:00:11]} 11. Bxc6 {[%emt 0:12:12]} bxc6 {[%emt 0:00:13]} 12. Qxc3 {[%emt 0:00:14]} Ne7 {[%emt 0:03:27]} 13. Nd2 {[%emt 0:02:33]} h5 {[%emt 0:04:44]} 14. h4 {[%emt 0:01:30]} g5 {[%emt 0:01:15]} 15. hxg5 {[%emt 0:00:08]} fxg5 {[%emt 0:00:24]} 16. Be5 {[%emt 0:00:53]} O-O {[%emt 0:05:35]} 17. Nb3 {[%emt 0:04:34]} Ng6 {[%emt 0:04:12]} 18. Nc5 {[%emt 0:05:34]} Qh7 {[%emt 0:00:22]} 19. f4 {[%emt 0:02:26]} g4 {[%emt 0:05:30]} 20. Rae1 {[%emt 0:01:59]} Nxe5 {[%emt 0:05:04]} 21. fxe5 {[%emt 0:00:43]} h4 {[%emt 0:03:10]} 22. e4 {[%emt 0:03:07]} dxe4 {[%emt 0:00:37]} 23. Qe3 {[%emt 0:00:12]} h3 {[%emt 0:10:00]} 24. Nxe4 {[%emt 0:02:31]} hxg2 {[%emt 0:00:53]} 25. Kxg2 {[%emt 0:00:20]} Qh3+ {[%emt 0:01:16]} 26. Qxh3 {[%emt 0:01:27]} Bxe4+ {[%emt 0:00:09]} 27. Kg3 {[%emt 0:00:07]} gxh3 {[%emt 0:00:24]} 28. Rxf8+ {[%emt 0:00:10]} Rxf8 {[%emt 0:00:43]} 29. Rxe4 {[%emt 0:00:08]} Rf1 {[%emt 0:00:27]} 30. Kxh3 {[%emt 0:00:26]} Rf2 {[%emt 0:00:37]} 31. Rg4+ {[%emt 0:00:06]} Kf7 {[%emt 0:00:42]} 32. Rg2 {[%emt 0:00:08]} Rf3+ {[%emt 0:00:26]} 33. Rg3 {[%emt 0:01:12]} Rf2 {[%emt 0:00:09]} 34. Rb3 {[%emt 0:00:14]} Rd2 {[%emt 0:03:36]} 35. Rb7+ {[%emt 0:05:56]} Kg6 {[%emt 0:00:15]} 36. Rxa7 {[%emt 0:00:17]} Rxb2 {[%emt 0:00:28]} 37. Kg3 {[%emt 0:13:21]} Rb4 {[%emt 0:02:36]} 38. Kf3 {[%emt 0:01:20]} Rxd4 {[%emt 0:00:17]} 39. Ke3 {[%emt 0:00:11]} c5 {[%emt 0:02:15]} 40. Ra5 {[%emt 0:03:16]} Kf5 {[%emt 0:00:50]} 41. Rxc5 {[%emt 0:30:16]} Ra4 {[%emt 0:30:12]} 42. Rc2 {[%emt 0:03:28]} Kxe5 {[%emt 0:00:11]} 43. Kd3 {[%emt 0:00:07]} Kd5 {[%emt 0:00:25]} 44. Kc3 {[%emt 0:00:53]} Rc4+ {[%emt 0:00:09]} 45. Kb3 {[%emt 0:00:07]} Rxc2 {[%emt 0:00:16]} 46. Kxc2 {[%emt 0:00:05]} Kc4 {[%emt 0:00:06]} 47. Kd2 {[%emt 0:00:06]} Kb4 {[%emt 0:00:09]} 48. Ke3 {[%emt 0:00:08]} Ka3 {[%emt 0:00:06]} 49. Ke4 {[%emt 0:00:19]} Kxa2 {[%emt 0:00:06]} 50. Ke5 {[%emt 0:00:08]} Kb2 {[%emt 0:00:08]} 51. Kxe6 {[%emt 0:00:03]} 1/2-1/2

[Event "Fagernes Open 2021"]
[Site "Fagernes"]
[Date "2021.10.11"]
[Round "2.13"]
[White "Skigelstrand, Live Jorgensen"]
[Black "Eriksen, Olai Dyrhaug"]
[Result "1/2-1/2"]
[ECO "B13"]
[WhiteElo "1649"]
[BlackElo "1809"]
[Annotator "NA"]
[PlyCount "58"]
[EventDate "2021.10.10"]
[EventCountry "NOR"]
[SourceTitle "playchess.com"]
[Source "ChessBase"]
[SourceQuality "1"]
[TimeControl "40/5400+30:1800+30"]

1. e4 {[%emt 0:00:00]} c6 {[%emt 0:00:00]} 2. d4 {[%emt 0:00:00]} d5 {[%emt 0:00:00]} 3. exd5 {[%emt 0:00:00]} cxd5 {[%emt 0:00:00]} 4. Bd3 {[%emt 0:00:00]} Nc6 {[%emt 0:00:00]} 5. c3 {[%emt 0:00:00]} Qc7 {[%emt 0:00:00]} 6. Ne2 {[%emt 0:00:00]} Bg4 {[%emt 0:00:00]} 7. O-O {[%emt 0:00:00]} e6 {[%emt 0:00:00]} 8. Qe1 {[%emt 0:00:00]} Nf6 {[%emt 0:00:00]} 9. Bg5 {[%emt 0:00:00]} Bd6 {[%emt 0:00:00]} 10. f3 {[%emt 0:00:00]} Bh5 {[%emt 0:00:00]} 11. Bxf6 {[%emt 0:00:00]} gxf6 {[%emt 0:00:00]} 12. Qh4 {[%emt 0:00:00]} Bg6 {[%emt 0:00:00]} 13. Bxg6 {[%emt 0:00:00]} fxg6 {[%emt 0:00:00]} 14. Qxf6 {[%emt 0:00:00]} Kd7 {[%emt 0:00:50]} 15. Qh4 {[%emt 0:13:38]} g5 {[%emt 0:09:51]} 16. Qxg5 {[%emt 0:11:34]} Bxh2+ {[%emt 0:04:16]} 17. Kf2 {[%emt 0:12:25]} Rhg8 {[%emt 0:07:14]} 18. Qh4 {[%emt 0:01:20]} Bd6 {[%emt 0:00:25]} 19. Qxh7+ {[%emt 0:02:41]} Ne7 {[%emt 0:00:08]} 20. Rg1 {[%emt 0:15:09]} Bg3+ {[%emt 0:14:17]} 21. Nxg3 {[%emt 0:10:22]} Qxg3+ {[%emt 0:00:40]} 22. Kf1 {[%emt 0:01:15]} Raf8 {[%emt 0:03:26]} 23. Nd2 {[%emt 0:01:47]} Qf4 {[%emt 0:03:47]} 24. Qd3 {[%emt 0:02:32]} Nf5 {[%emt 0:01:08]} 25. Re1 {[%emt 0:01:00]} Ng3+ {[%emt 0:04:10]} 26. Kf2 {[%emt 0:00:07]} Qh4 {[%emt 0:00:59]} 27. Ke3 {[%emt 0:03:13]} Qf4+ {[%emt 0:17:27]} 28. Kf2 {[%emt 0:00:08]} Qh4 {[%emt 0:00:42]} 29. Ke3 {[%emt 0:00:15]} Qf4+ {[%emt 0:06:55]} 1/2-1/2

[Event "Fagernes Open 2021"]
[Site "Fagernes"]
[Date "2021.10.11"]
[Round "2.14"]
[White "Skotheim, Havard"]
[Black "Kittilsen, Sigurd"]
[Result "0-1"]
[ECO "B23"]
[WhiteElo "1326"]
[BlackElo "1881"]
[Annotator "NA"]
[PlyCount "52"]
[EventDate "2021.10.10"]
[EventCountry "NOR"]
[SourceTitle "playchess.com"]
[Source "ChessBase"]
[SourceQuality "1"]
[TimeControl "40/5400+30:1800+30"]

1. e4 {[%emt 0:00:00]} c5 {[%emt 0:00:00]} 2. Nc3 {[%emt 0:00:00]} g6 {[%emt 0:00:00]} 3. f4 {[%emt 0:00:00]} Bg7 {[%emt 0:00:00]} 4. Nf3 {[%emt 0:00:00]} Nc6 {[%emt 0:00:00]} 5. Bb5 {[%emt 0:00:00]} Nd4 {[%emt 0:00:00]} 6. O-O {[%emt 0:00:00]} e6 {[%emt 0:00:00]} 7. d3 {[%emt 0:00:00]} a6 {[%emt 0:00:00]} 8. Ba4 {[%emt 0:00:00]} b5 {[%emt 0:00:00]} 9. Bb3 {[%emt 0:00:00]} Bb7 {[%emt 0:00:00]} 10. a3 {[%emt 0:04:48]} Ne7 {[%emt 0:00:00]} 11. Be3 {[%emt 0:03:08]} O-O {[%emt 0:08:13]} 12. Rb1 {[%emt 0:07:40]} d5 {[%emt 0:13:14]} 13. e5 {[%emt 0:04:22]} Nxb3 {[%emt 0:01:51]} 14. cxb3 {[%emt 0:01:04]} d4 {[%emt 0:00:38]} 15. Nxb5 {[%emt 0:02:20]} axb5 {[%emt 0:02:33]} 16. Bf2 {[%emt 0:02:16]} Qd5 {[%emt 0:05:44]} 17. Qc2 {[%emt 0:05:14]} Bh6 {[%emt 0:02:19]} 18. Bg3 {[%emt 0:03:50]} Nf5 {[%emt 0:06:11]} 19. Qf2 {[%emt 0:03:02]} Ne3 {[%emt 0:05:44]} 20. Rfe1 {[%emt 0:01:54]} Qxb3 {[%emt 0:01:41]} 21. Rbc1 {[%emt 0:04:03]} Bxf3 {[%emt 0:06:02]} 22. Qxf3 {[%emt 0:01:57]} Qxb2 {[%emt 0:01:46]} 23. Rxc5 {[%emt 0:02:17]} Rxa3 {[%emt 0:00:53]} 24. Qb7 {[%emt 0:13:14]} Ra1 {[%emt 0:04:09]} 25. Rxb5 {[%emt 0:02:03]} Rxe1+ {[%emt 0:00:34]} 26. Bxe1 {[%emt 0:00:19]} Qe2 {[%emt 0:00:11]} 0-1

[Event "Fagernes Open 2021"]
[Site "Fagernes"]
[Date "2021.10.11"]
[Round "2.15"]
[White "Stokhaug, Jon Arne"]
[Black "Hellesoy, David"]
[Result "0-1"]
[ECO "A47"]
[WhiteElo "1861"]
[BlackElo "1500"]
[Annotator "NA"]
[PlyCount "112"]
[EventDate "2021.10.10"]
[EventCountry "NOR"]
[SourceTitle "playchess.com"]
[Source "ChessBase"]
[SourceQuality "1"]
[TimeControl "40/5400+30:1800+30"]

1. d4 {[%emt 0:00:00]} Nf6 {[%emt 0:00:16]} 2. Nf3 {[%emt 0:00:00]} c5 {[%emt 0:01:21]} 3. c3 {[%emt 0:00:00]} b6 {[%emt 0:05:09]} 4. Bf4 {[%emt 0:00:00]} d5 {[%emt 0:05:57]} 5. e3 {[%emt 0:00:00]} Nc6 {[%emt 0:06:16]} 6. Bb5 {[%emt 0:06:51]} Bd7 {[%emt 0:00:18]} 7. O-O {[%emt 0:00:15]} a6 {[%emt 0:04:28]} 8. Bd3 {[%emt 0:02:46]} c4 {[%emt 0:01:06]} 9. Bc2 {[%emt 0:00:08]} Bg4 {[%emt 0:02:31]} 10. h3 {[%emt 0:04:03]} Bh5 {[%emt 0:01:38]} 11. Nbd2 {[%emt 0:02:32]} Bg6 {[%emt 0:05:44]} 12. Re1 {[%emt 0:03:50]} e6 {[%emt 0:05:32]} 13. Ne5 {[%emt 0:06:56]} Nxe5 {[%emt 0:00:42]} 14. dxe5 {[%emt 0:00:12]} Ne4 {[%emt 0:05:43]} 15. Bxe4 {[%emt 0:02:08]} Bxe4 {[%emt 0:03:04]} 16. Nxe4 {[%emt 0:03:50]} dxe4 {[%emt 0:00:13]} 17. Qc2 {[%emt 0:00:35]} Qd3 {[%emt 0:02:06]} 18. Qa4+ {[%emt 0:10:16]} b5 {[%emt 0:04:11]} 19. Qa5 {[%emt 0:05:12]} Qd8 {[%emt 0:00:36]} 20. Qxd8+ {[%emt 0:00:07]} Rxd8 {[%emt 0:00:24]} 21. Rad1 {[%emt 0:00:07]} Bc5 {[%emt 0:07:19]} 22. Bg5 {[%emt 0:01:51]} Rd7 {[%emt 0:00:58]} 23. a4 {[%emt 0:05:39]} h6 {[%emt 0:01:52]} 24. Bh4 {[%emt 0:00:13]} g5 {[%emt 0:00:12]} 25. Bg3 {[%emt 0:00:04]} Ke7 {[%emt 0:04:08]} 26. axb5 {[%emt 0:01:11]} axb5 {[%emt 0:02:25]} 27. Kf1 {[%emt 0:03:53]} Rhd8 {[%emt 0:02:29]} 28. Ke2 {[%emt 0:00:23]} Rd3 {[%emt 0:02:19]} 29. Bh2 {[%emt 0:03:56]} R8d5 {[%emt 0:01:38]} 30. Rxd3 {[%emt 0:00:42]} Rxd3 {[%emt 0:00:58]} 31. Ra1 {[%emt 0:01:27]} Rd8 {[%emt 0:06:06]} 32. Ra5 {[%emt 0:01:13]} Rb8 {[%emt 0:00:56]} 33. f3 {[%emt 0:05:26]} Kd7 {[%emt 0:03:36]} 34. fxe4 {[%emt 0:01:39]} Kc6 {[%emt 0:00:30]} 35. Bg3 {[%emt 0:01:29]} Bb6 {[%emt 0:04:16]} 36. Ra1 {[%emt 0:01:00]} Bc5 {[%emt 0:03:40]} 37. Kf3 {[%emt 0:02:13]} h5 {[%emt 0:02:26]} 38. Rd1 {[%emt 0:05:18]} Be7 {[%emt 0:02:57]} 39. Ke2 {[%emt 0:01:01]} Ra8 {[%emt 0:01:08]} 40. Rf1 {[%emt 0:02:33]} Ra2 {[%emt 0:01:54]} 41. Rb1 {[%emt 0:31:19]} Ba3 {[%emt 0:00:00]} 42. Be1 {[%emt 0:00:00]} Bxb2 {[%emt 0:00:00]} 43. Kf3 {[%emt 0:00:00]} b4 {[%emt 0:03:26]} 44. cxb4 {[%emt 0:00:00]} c3 {[%emt 0:01:10]} 45. Bxc3 {[%emt 0:00:00]} Bxc3 {[%emt 0:00:22]} 46. b5+ {[%emt 0:00:00]} Kb6 {[%emt 0:00:28]} 47. Rd1 {[%emt 0:00:00]} Bxe5 {[%emt 0:01:31]} 48. Rd7 {[%emt 0:00:00]} f6 {[%emt 0:02:10]} 49. Re7 {[%emt 0:00:00]} h4 {[%emt 0:01:58]} 50. Rxe6+ {[%emt 0:00:00]} Kxb5 {[%emt 0:00:13]} 51. Re8 {[%emt 0:00:00]} Kc4 {[%emt 0:00:52]} 52. Rd8 {[%emt 0:00:00]} Kc3 {[%emt 0:01:04]} 53. Rd5 {[%emt 0:00:00]} Bg3 {[%emt 0:02:09]} 54. Rc5+ {[%emt 0:00:51]} Kb4 {[%emt 0:00:35]} 55. Rc6 {[%emt 0:00:00]} Rf2+ {[%emt 0:00:26]} 56. Kg4 {[%emt 0:00:00]} Be5 {[%emt 0:00:24]} 0-1

[Event "Fagernes Open 2021"]
[Site "Fagernes"]
[Date "2021.10.11"]
[Round "2.16"]
[White "Lye, Sigurd"]
[Black "Nebell, Anne Grete"]
[Result "1-0"]
[ECO "B07"]
[WhiteElo "1821"]
[BlackElo "1262"]
[Annotator "NA"]
[PlyCount "101"]
[EventDate "2021.10.10"]
[EventCountry "NOR"]
[SourceTitle "playchess.com"]
[Source "ChessBase"]
[SourceQuality "1"]
[TimeControl "40/5400+30:1800+30"]

1. e4 {[%emt 0:00:00]} d6 {[%emt 0:00:00]} 2. d4 {[%emt 0:00:00]} g6 {[%emt 0:00:00]} 3. Nc3 {[%emt 0:00:00]} Nf6 {[%emt 0:00:00]} 4. Be3 {[%emt 0:00:00]} c6 {[%emt 0:00:00]} 5. h3 {[%emt 0:00:00]} Qa5 {[%emt 0:00:00]} 6. Qd2 {[%emt 0:00:00]} Nbd7 {[%emt 0:00:00]} 7. f4 {[%emt 0:00:00]} b5 {[%emt 0:00:00]} 8. e5 {[%emt 0:02:51]} b4 {[%emt 0:00:00]} 9. exf6 {[%emt 0:02:40]} bxc3 {[%emt 0:00:08]} 10. Qxc3 {[%emt 0:01:37]} Qxc3+ {[%emt 0:01:08]} 11. bxc3 {[%emt 0:00:06]} Nxf6 {[%emt 0:00:30]} 12. Bd3 {[%emt 0:02:24]} Bg7 {[%emt 0:01:55]} 13. Nf3 {[%emt 0:03:33]} O-O {[%emt 0:01:57]} 14. Rb1 {[%emt 0:02:04]} Bd7 {[%emt 0:03:24]} 15. Kf2 {[%emt 0:03:36]} Rab8 {[%emt 0:03:18]} 16. c4 {[%emt 0:02:35]} Be6 {[%emt 0:08:19]} 17. g4 {[%emt 0:03:33]} Rxb1 {[%emt 0:07:02]} 18. Rxb1 {[%emt 0:00:09]} Bc8 {[%emt 0:00:15]} 19. Rb3 {[%emt 0:11:40]} Nd7 {[%emt 0:05:08]} 20. Ra3 {[%emt 0:03:36]} c5 {[%emt 0:05:34]} 21. Rxa7 {[%emt 0:01:34]} cxd4 {[%emt 0:01:21]} 22. Nxd4 {[%emt 0:02:48]} e5 {[%emt 0:04:40]} 23. Nb5 {[%emt 0:01:24]} exf4 {[%emt 0:01:03]} 24. Bxf4 {[%emt 0:00:46]} Be5 {[%emt 0:06:45]} 25. Bxe5 {[%emt 0:05:46]} dxe5 {[%emt 0:00:48]} 26. Nd6 {[%emt 0:00:42]} Nc5 {[%emt 0:02:21]} 27. Rc7 {[%emt 0:02:02]} Nxd3+ {[%emt 0:00:45]} 28. cxd3 {[%emt 0:00:08]} Be6 {[%emt 0:00:30]} 29. a3 {[%emt 0:01:53]} Rb8 {[%emt 0:02:37]} 30. Nb5 {[%emt 0:01:22]} f5 {[%emt 0:01:53]} 31. Re7 {[%emt 0:00:43]} Rb6 {[%emt 0:01:02]} 32. Nc7 {[%emt 0:09:00]} Bf7 {[%emt 0:01:50]} 33. Rxe5 {[%emt 0:00:36]} fxg4 {[%emt 0:01:24]} 34. hxg4 {[%emt 0:00:13]} Rb3 {[%emt 0:00:25]} 35. Re3 {[%emt 0:01:39]} Rxa3 {[%emt 0:00:26]} 36. Nb5 {[%emt 0:00:23]} Rb3 {[%emt 0:01:51]} 37. Nd6 {[%emt 0:00:44]} Rb6 {[%emt 0:03:02]} 38. Nxf7 {[%emt 0:06:15]} Kxf7 {[%emt 0:00:18]} 39. g5 {[%emt 0:00:29]} Rb2+ {[%emt 0:01:04]} 40. Re2 {[%emt 0:03:29]} Rb3 {[%emt 0:00:46]} 41. Ke3 {[%emt 0:31:00]} Ke6 {[%emt 0:30:58]} 42. Ke4 {[%emt 0:00:19]} Kd6 {[%emt 0:01:12]} 43. Rh2 {[%emt 0:01:00]} Rb7 {[%emt 0:00:26]} 44. Kd4 {[%emt 0:02:18]} Rd7 {[%emt 0:00:49]} 45. Rf2 {[%emt 0:03:24]} Ke6+ {[%emt 0:02:48]} 46. Ke4 {[%emt 0:00:50]} Rc7 {[%emt 0:03:21]} 47. Rf6+ {[%emt 0:03:03]} Ke7 {[%emt 0:01:38]} 48. Rb6 {[%emt 0:00:13]} Kf7 {[%emt 0:02:00]} 49. Kd5 {[%emt 0:03:12]} Kg7 {[%emt 0:00:40]} 50. c5 {[%emt 0:01:22]} h6 {[%emt 0:00:50]} 51. c6 {[%emt 0:00:52]} 1-0

[Event "Fagernes Open 2021"]
[Site "Fagernes"]
[Date "2021.10.12"]
[Round "3.1"]
[White "Fiskaaen, Martin Holten"]
[Black "Unhjem, Bjorn Robert Lovoll"]
[Result "1-0"]
[ECO "E11"]
[WhiteElo "1829"]
[BlackElo "1924"]
[Annotator "NA"]
[PlyCount "111"]
[EventDate "2021.10.10"]
[EventCountry "NOR"]
[SourceTitle "playchess.com"]
[Source "ChessBase"]
[SourceQuality "1"]
[TimeControl "40/5400+30:1800+30"]

1. d4 {[%emt 0:00:00]} Nf6 {[%emt 0:00:00]} 2. c4 {[%emt 0:00:00]} e6 {[%emt 0:00:00]} 3. Nf3 {[%emt 0:00:00]} Bb4+ {[%emt 0:00:27]} 4. Bd2 {[%emt 0:00:00]} Qe7 {[%emt 0:00:09]} 5. e3 {[%emt 0:00:00]} O-O {[%emt 0:03:28]} 6. Bd3 {[%emt 0:00:00]} Nc6 {[%emt 0:02:31]} 7. Nc3 {[%emt 0:13:43]} d6 {[%emt 0:02:06]} (7... d5 $11) 8. a3 {[%emt 0:10:11]} Bxc3 {[%emt 0:00:16]} 9. Bxc3 {[%emt 0:00:19]} e5 {[%emt 0:00:19]} 10. d5 {[%emt 0:00:20]} Nb8 {[%emt 0:02:27]} 11. Nd2 {[%emt 0:09:55]} Nbd7 {[%emt 0:24:49]} 12. O-O {[%emt 0:04:25]} a5 {[%emt 0:24:35]} 13. Bc2 {[%emt 0:06:21]} c6 {[%emt 0:14:01]} 14. e4 {[%emt 0:03:46]} c5 {[%emt 0:04:25]} 15. Qe2 {[%emt 0:04:37]} b6 {[%emt 0:01:21]} 16. Rae1 {[%emt 0:02:17]} Ne8 {[%emt 0:01:22]} 17. g3 {[%emt 0:10:56]} g6 {[%emt 0:06:20]} 18. f4 {[%emt 0:04:27]} f6 {[%emt 0:00:15]} 19. f5 {[%emt 0:04:38]} g5 {[%emt 0:02:15]} 20. g4 {[%emt 0:02:36]} Nc7 {[%emt 0:01:13]} 21. Kg2 {[%emt 0:07:34]} Ba6 {[%emt 0:01:15]} 22. Bd3 {[%emt 0:00:30]} Kg7 {[%emt 0:00:16]} 23. Rh1 {[%emt 0:01:06]} h6 {[%emt 0:00:53]} 24. Reg1 {[%emt 0:05:51]} Rh8 {[%emt 0:00:20]} 25. h4 {[%emt 0:01:00]} Rh7 {[%emt 0:01:45]} 26. Rh3 {[%emt 0:00:34]} Bb7 {[%emt 0:01:05]} 27. Kf2 {[%emt 0:00:47]} Rah8 {[%emt 0:00:43]} 28. Rgh1 {[%emt 0:00:30]} Qf7 {[%emt 0:01:08]} 29. Qf3 {[%emt 0:00:44]} Kf8 {[%emt 0:00:44]} 30. R1h2 {[%emt 0:00:53]} Ke7 {[%emt 0:02:11]} 31. Qh1 {[%emt 0:00:39]} Nf8 {[%emt 0:00:17]} 32. b4 {[%emt 0:02:20]} axb4 {[%emt 0:00:26]} 33. axb4 {[%emt 0:00:09]} Bc8 {[%emt 0:02:39]} 34. Be2 {[%emt 0:00:26]} Bd7 {[%emt 0:00:12]} 35. Qa1 {[%emt 0:00:31]} cxb4 {[%emt 0:01:11]} 36. Bxb4 {[%emt 0:00:13]} Qe8 {[%emt 0:01:22]} 37. Qa3 {[%emt 0:00:49]} Kf7 {[%emt 0:00:00]} 38. Bxd6 {[%emt 0:00:18]} Qc8 {[%emt 0:00:06]} 39. Qa7 {[%emt 0:01:44]} Ne8 {[%emt 0:00:34]} 40. Qxb6 {[%emt 0:00:46]} Nxd6 {[%emt 0:00:33]} 41. Qxd6 {[%emt 0:30:10]} Qb7 {[%emt 0:00:00]} 42. Qa3 $18 {[%emt 0:00:00]} Qc7 {[%emt 0:03:17]} 43. c5 {[%emt 0:00:00]} Bc8 {[%emt 0:01:47]} 44. Nc4 {[%emt 0:00:00]} Nd7 {[%emt 0:00:37]} 45. c6 {[%emt 0:00:00]} Nb8 {[%emt 0:01:58]} 46. Nd6+ {[%emt 0:00:00]} Kg7 {[%emt 0:00:18]} 47. Nxc8 {[%emt 0:00:00]} Rxc8 {[%emt 0:00:11]} 48. Rb3 {[%emt 0:00:00]} Nxc6 {[%emt 0:00:54]} 49. dxc6 {[%emt 0:00:00]} Qxc6 {[%emt 0:00:09]} 50. hxg5 {[%emt 0:00:00]} fxg5 {[%emt 0:02:32]} 51. Qe7+ {[%emt 0:00:00]} Kg8 {[%emt 0:00:12]} 52. Qxe5 {[%emt 0:00:00]} Qc2 {[%emt 0:02:14]} 53. Rb8 {[%emt 0:00:00]} Re7 {[%emt 0:01:41]} 54. Rxc8+ {[%emt 0:00:00]} Qxc8 {[%emt 0:00:06]} 55. Qxe7 {[%emt 0:00:00]} Qc5+ {[%emt 0:00:06]} 56. Qxc5 {[%emt 0:00:00]} 1-0